bitfinex/quotes_BTCUSD_20240729
["timestamp","ask_amount","ask_price","bid_price","bid_amount"]
[1722248349346,0.56221447,69588.0,69587.0,0.5532095]
[1722248350859,0.56121447,69588.0,69587.0,0.5532095]
[1722248351031,0.5837742,69588.0,69587.0,0.8331375]
[1722248351240,0.4415742,69588.0,69587.0,0.9932375]
[1722248351449,0.39886606,69588.0,69587.0,0.9932375]
[1722248351992,0.44506504,69588.0,69587.0,0.9932375]
[1722248352332,0.44506504,69588.0,69587.0,1.0442375]
[1722248352514,0.39886606,69588.0,69587.0,1.0442375]
[1722248353624,0.39886606,69588.0,69587.0,0.9432375]
[1722248353827,0.77229239,69588.0,69587.0,1.01312234]
[1722248355089,0.77229239,69588.0,69587.0,0.93552234]
[1722248355871,0.77229239,69588.0,69587.0,0.988248]
[1722248356104,0.74973266,69588.0,69587.0,0.988248]
[1722248356277,0.37630633,69588.0,69587.0,0.988248]
[1722248359332,0.39886561,69588.0,69587.0,0.988248]
[1722248359547,0.37630633,69588.0,69587.0,0.988248]
[1722248362120,0.37530633,69588.0,69587.0,0.987248]
[1722248362542,0.37630633,69588.0,69587.0,0.988248]
[1722248362755,0.39786561,69588.0,69587.0,0.988248]
[1722248362957,0.39786561,69588.0,69587.0,0.987248]
[1722248363359,0.39686561,69588.0,69587.0,0.987248]
[1722248363795,0.39786561,69588.0,69587.0,0.987248]
[1722248363999,0.39886561,69588.0,69587.0,0.889248]
[1722248364354,0.39886561,69588.0,69587.0,0.805748]
[1722248364589,0.47906561,69588.0,69587.0,0.889248]
[1722248364766,0.54216561,69588.0,69587.0,0.889248]
[1722248365153,0.54116561,69588.0,69587.0,0.889248]
[1722248365550,0.54116561,69588.0,69587.0,0.903248]
[1722248365951,0.54116561,69588.0,69587.0,0.87213294]
[1722248367464,0.51860633,69588.0,69587.0,0.87213294]
[1722248367893,0.51856082,69588.0,69587.0,0.85052526]
[1722248369498,0.51856082,69588.0,69587.0,0.76702526]
[1722248369907,0.51856082,69588.0,69587.0,0.76794926]
[1722248370845,0.5411201,69588.0,69587.0,0.76794926]
[1722248371259,0.51856082,69588.0,69587.0,0.76794926]
[1722248374536,0.64086013,69588.0,69587.0,0.76794926]
[1722248374736,0.56643677,69588.0,69587.0,0.76794926]
[1722248375119,0.56543677,69588.0,69587.0,0.76694926]
[1722248375318,0.56543677,69588.0,69587.0,0.82994926]
[1722248375564,0.56643677,69588.0,69587.0,0.82994926]
[1722248375906,0.56543677,69588.0,69587.0,0.80294926]
[1722248376311,0.56743677,69588.0,69587.0,0.82794926]
[1722248376517,0.48723677,69588.0,69587.0,0.81594926]
[1722248376757,0.42413677,69588.0,69587.0,0.81594926]
[1722248376960,0.42313677,69588.0,69587.0,0.80294926]
[1722248377700,0.42413677,69588.0,69587.0,0.81394926]
[1722248377931,0.37626082,69588.0,69587.0,0.81394926]
[1722248378158,0.39882022,69588.0,69587.0,0.866672]
[1722248378595,0.39982022,69588.0,69587.0,0.878672]
[1722248378985,0.39849908,69588.0,69587.0,0.878672]
[1722248379588,0.44801361,69588.0,69587.0,0.878672]
[1722248379943,0.39849908,69588.0,69587.0,0.85706389]
[1722248383051,0.44801352,69588.0,69587.0,0.85706389]
[1722248389266,0.42545412,69588.0,69587.0,0.85706389]
[1722248390009,0.42545412,69588.0,69587.0,0.878672]
[1722248391841,0.42545412,69588.0,69587.0,0.8570639]
[1722248392435,0.44801352,69588.0,69587.0,0.8570639]
[1722248392775,0.44801352,69588.0,69587.0,0.8070639]
[1722248393727,0.42545412,69588.0,69587.0,0.8070639]
[1722248394474,0.42545412,69588.0,69587.0,0.8570639]
[1722248394692,0.42545412,69588.0,69587.0,0.8070639]
[1722248395794,0.42545412,69588.0,69587.0,0.8570639]
[1722248396380,0.42545412,69588.0,69587.0,0.9080639]
[1722248396601,0.44801352,69588.0,69587.0,0.9080639]
[1722248396901,0.42545412,69588.0,69587.0,0.9080639]
[1722248397507,0.42545412,69588.0,69587.0,0.9060639]
[1722248400291,0.4480134,69588.0,69587.0,0.9895639]
[1722248400478,0.4480134,69588.0,69587.0,0.8905639]
[1722248400766,0.5958134,69588.0,69587.0,0.8070639]
[1722248400921,0.59626819,69588.0,69587.0,0.8070639]
[1722248401355,0.57370891,69588.0,69587.0,0.8070639]
[1722248401684,0.57454891,69588.0,69587.0,0.8070639]
[1722248402080,0.57454891,69588.0,69587.0,0.77594749]
[1722248403946,0.57454891,69588.0,69587.0,0.828672]
[1722248406663,0.57455144,69588.0,69587.0,0.828672]
[1722248408499,0.57455144,69588.0,69587.0,0.023924]
[1722248408702,0.63201458,69588.0,69587.0,0.023924]
[1722248409797,0.1429,69587.0,69579.0,0.1835]
[1722248409910,0.423591,69586.0,69581.0,0.114973]
[1722248410113,0.42291144,69585.0,69582.0,0.1]
[1722248410334,0.423591,69584.0,69580.0,0.114975]
[1722248410558,0.42291144,69583.0,69581.0,0.1]
[1722248410766,0.37407656,69582.0,69581.0,0.1]
[1722248411195,0.373397,69582.0,69581.0,0.1]
[1722248412076,0.42611124,69582.0,69581.0,0.1]
[1722248412682,0.42711124,69582.0,69581.0,0.11]
[1722248413082,0.42811124,69582.0,69581.0,0.11]
[1722248413498,0.45067194,69582.0,69581.0,0.11]
[1722248413700,0.517797,69582.0,69581.0,0.11]
[1722248414349,0.57049915,69582.0,69581.0,0.11]
[1722248414925,0.517797,69582.0,69581.0,0.11]
[1722248415125,0.375397,69582.0,69581.0,0.50492]
[1722248415938,0.375397,69582.0,69581.0,0.734867]
[1722248416139,0.375397,69582.0,69581.0,0.50492]
[1722248416417,0.39795687,69582.0,69581.0,0.50492]
[1722248416937,0.39795687,69582.0,69581.0,0.45492]
[1722248417136,0.39795687,69582.0,69581.0,0.50492]
[1722248418047,0.39695687,69582.0,69581.0,0.50492]
[1722248418213,0.375397,69582.0,69581.0,0.50492]
[1722248418791,0.375397,69582.0,69581.0,0.45492]
[1722248419731,0.42960233,69582.0,69581.0,0.40219241]
[1722248419939,0.375397,69582.0,69581.0,0.35492]
[1722248420502,0.42959154,69582.0,69581.0,0.124973]
[1722248420703,0.42959154,69582.0,69581.0,0.35492]
[1722248420904,0.42959154,69582.0,69581.0,0.124973]
[1722248421129,0.42959154,69582.0,69581.0,0.208473]
[1722248421334,0.45215112,69582.0,69581.0,0.208473]
[1722248421538,0.45215112,69582.0,69581.0,0.35492]
[1722248421974,0.45215112,69582.0,69581.0,0.43842]
[1722248422481,0.45215112,69582.0,69581.0,0.42842]
[1722248422482,0.45115112,69582.0,69581.0,0.42842]
[1722248422680,0.42859154,69582.0,69581.0,0.42842]
[1722248422878,0.42959154,69582.0,69581.0,0.42842]
[1722248423486,0.42959154,69582.0,69581.0,0.658367]
[1722248424500,0.375397,69582.0,69581.0,0.658367]
[1722248424920,0.42959522,69582.0,69581.0,0.658367]
[1722248425474,0.42910969,69582.0,69581.0,0.658367]
[1722248426101,0.45166927,69582.0,69581.0,0.658367]
[1722248429761,0.45166927,69582.0,69581.0,0.543394]
[1722248429990,0.45142504,69582.0,69581.0,0.658367]
[1722248430524,0.45142504,69582.0,69581.0,0.574867]
[1722248430923,0.45142504,69582.0,69581.0,0.658367]
[1722248431602,0.45529974,69582.0,69581.0,0.658367]
[1722248431803,0.45529974,69582.0,69581.0,0.63675614]
[1722248433823,0.43274016,69582.0,69581.0,0.63675614]
[1722248435016,0.43358016,69582.0,69581.0,0.63675614]
[1722248435569,0.43358016,69582.0,69581.0,0.86670314]
[1722248437155,0.45613974,69582.0,69581.0,0.86670314]
[1722248437389,0.45589688,69582.0,69581.0,0.86670314]
[1722248438168,0.4333373,69582.0,69581.0,0.86670314]
[1722248439171,0.4333373,69582.0,69581.0,0.96570314]
[1722248441519,0.45589679,69582.0,69581.0,0.96570314]
[1722248441724,0.45589679,69582.0,69581.0,0.93458461]
[1722248441725,0.4333373,69582.0,69581.0,0.93458461]
[1722248442821,0.4333373,69582.0,69581.0,0.75208461]
[1722248442950,0.4333373,69582.0,69581.0,0.83558461]
[1722248443871,0.4333373,69582.0,69581.0,0.888314]
[1722248444666,0.45589679,69582.0,69581.0,0.888314]
[1722248445671,0.4333373,69582.0,69581.0,0.888314]
[1722248449160,0.45589679,69582.0,69581.0,0.888314]
[1722248453395,0.4333373,69582.0,69581.0,0.888314]
[1722248453768,0.4333373,69582.0,69581.0,0.85719539]
[1722248455209,0.4333373,69582.0,69581.0,0.95619539]
[1722248455801,0.4333373,69582.0,69581.0,0.93458525]
[1722248456155,0.4333373,69582.0,69581.0,1.03757437]
[1722248456474,0.45589675,69582.0,69581.0,1.03757437]
[1722248456802,0.40169853,69582.0,69581.0,1.03757437]
[1722248460734,0.40069853,69582.0,69581.0,1.03757437]
[1722248460980,0.40069853,69582.0,69581.0,1.26952137]
[1722248461293,0.40169853,69582.0,69581.0,1.26952137]
[1722248461484,0.40169853,69582.0,69581.0,1.38900869]
[1722248461704,0.40169853,69582.0,69581.0,1.49946837]
[1722248461899,0.23101127,69582.0,69581.0,2.18940269]
[1722248462071,0.20010413,69582.0,69581.0,2.18940269]
[1722248462237,0.19622943,69582.0,69581.0,2.22624479]
[1722248462430,0.19622943,69582.0,69581.0,2.18940269]
[1722248462891,0.19522943,69582.0,69581.0,2.18940269]
[1722248463095,0.19522943,69582.0,69581.0,2.20240269]
[1722248463298,0.19622943,69582.0,69581.0,2.20237805]
[1722248463801,0.19622943,69582.0,69581.0,2.23251486]
[1722248463802,0.19522943,69582.0,69581.0,2.23251486]
[1722248464205,0.19522943,69582.0,69581.0,2.16301486]
[1722248464440,0.19522943,69582.0,69581.0,1.97343105]
[1722248464830,0.19522943,69582.0,69581.0,1.98743105]
[1722248464972,0.19522943,69582.0,69581.0,1.90393105]
[1722248465312,0.19422943,69582.0,69581.0,1.97343105]
[1722248465515,0.17166998,69582.0,69581.0,1.97343105]
[1722248465745,0.17166998,69582.0,69581.0,1.85396837]
[1722248466017,0.17166998,69582.0,69581.0,1.74348911]
[1722248466333,0.23816998,69582.0,69581.0,1.41778911]
[1722248466729,0.23816998,69582.0,69581.0,1.43078911]
[1722248466730,0.23916998,69582.0,69581.0,1.43078911]
[1722248466928,0.23916998,69582.0,69581.0,1.31132137]
[1722248467130,0.23916998,69582.0,69581.0,0.99787437]
[1722248467333,0.23916998,69582.0,69581.0,1.08137437]
[1722248467536,0.24283284,69582.0,69581.0,1.08137437]
[1722248468175,0.24283284,69582.0,69581.0,1.08229837]
[1722248468584,0.17633284,69582.0,69581.0,1.08229837]
[1722248469001,0.19522844,69582.0,69581.0,1.08229837]
[1722248469209,0.1988913,69582.0,69581.0,1.20178185]
[1722248469413,0.1988913,69582.0,69581.0,1.10278185]
[1722248469605,0.1988913,69582.0,69581.0,1.20178185]
[1722248470665,0.1988913,69582.0,69581.0,1.20378185]
[1722248472158,0.1988913,69582.0,69581.0,1.08429837]
[1722248472361,0.1988913,69582.0,69581.0,1.43372689]
[1722248472556,0.1988913,69582.0,69581.0,1.20377989]
[1722248473562,0.1988913,69582.0,69581.0,1.20177989]
[1722248474573,0.1988913,69582.0,69581.0,1.02456164]
[1722248474934,0.1988913,69582.0,69581.0,1.15551198]
[1722248475092,0.1988913,69582.0,69581.0,1.03602712]
[1722248475283,0.1988913,69582.0,69581.0,1.13502712]
[1722248475823,0.1988913,69582.0,69581.0,1.15551298]
[1722248476047,0.1988913,69582.0,69581.0,1.1555122]
[1722248477413,0.1988913,69582.0,69581.0,1.03602712]
[1722248477633,0.1988913,69582.0,69581.0,1.38545965]
[1722248478080,0.1988913,69582.0,69581.0,1.15551265]
[1722248478694,0.1988913,69582.0,69581.0,1.38545965]
[1722248479111,0.1988913,69582.0,69581.0,1.48645965]
[1722248479437,0.19522844,69582.0,69581.0,1.48645965]
[1722248480437,0.19522844,69582.0,69581.0,1.17101265]
[1722248480635,0.19889638,69582.0,69581.0,1.25451265]
[1722248480897,0.19889638,69582.0,69581.0,1.48445965]
[1722248482007,0.34825211,69582.0,69581.0,1.36697412]
[1722248482224,0.34825211,69582.0,69581.0,1.4864587]
[1722248482589,0.34825211,69582.0,69581.0,1.48445881]
[1722248482791,0.32569365,69582.0,69581.0,1.48445881]
[1722248483005,0.32569365,69582.0,69581.0,1.48645881]
[1722248484385,0.32569365,69582.0,69581.0,1.48445881]
[1722248485378,0.32569365,69582.0,69581.0,1.48645881]
[1722248486479,0.34825211,69582.0,69581.0,1.48645881]
[1722248486695,0.34825211,69582.0,69581.0,1.46485062]
[1722248487528,0.32569365,69582.0,69581.0,1.46485062]
[1722248487734,0.32569365,69582.0,69581.0,1.46285062]
[1722248489113,0.32569365,69582.0,69581.0,1.46485062]
[1722248490482,0.32569365,69582.0,69581.0,1.46285062]
[1722248490887,0.34825211,69582.0,69581.0,1.46285062]
[1722248491952,0.34825211,69582.0,69581.0,1.34536593]
[1722248492072,0.34825211,69582.0,69581.0,1.46484719]
[1722248492466,0.32569365,69582.0,69581.0,1.34536593]
[1722248492646,0.32569365,69582.0,69581.0,1.46484708]
[1722248493046,0.37888654,69582.0,69581.0,1.46484708]
[1722248493569,0.37888654,69582.0,69581.0,1.52864708]
[1722248494520,0.37888654,69582.0,69581.0,1.52864306]
[1722248494962,0.37888654,69582.0,69581.0,1.46484306]
[1722248495823,0.40144464,69582.0,69581.0,1.46484306]
[1722248498608,0.40144464,69582.0,69581.0,1.37147757]
[1722248498806,0.40144464,69582.0,69581.0,1.48645057]
[1722248499237,0.40144464,69582.0,69581.0,1.71639757]
[1722248499435,0.40144464,69582.0,69581.0,1.50945057]
[1722248499792,0.40144464,69582.0,69581.0,1.73939757]
[1722248500427,0.37888654,69582.0,69581.0,1.73939757]
[1722248500633,0.37888654,69582.0,69581.0,1.80309757]
[1722248501005,0.3752186,69582.0,69581.0,1.80309757]
[1722248501413,0.3752186,69582.0,69581.0,2.03369757]
[1722248501838,0.3752186,69582.0,69581.0,2.03369387]
[1722248502302,0.3752186,69582.0,69581.0,2.03369398]
[1722248503598,0.39777644,69582.0,69581.0,2.03369398]
[1722248503852,0.3752186,69582.0,69581.0,2.03369398]
[1722248505027,0.3752186,69582.0,69581.0,2.03369353]
[1722248507078,0.39777672,69582.0,69581.0,2.03369353]
[1722248507277,0.39777672,69582.0,69581.0,1.93269353]
[1722248508318,0.39777672,69582.0,69581.0,1.93269317]
[1722248508531,0.40140856,69582.0,69581.0,2.03369317]
[1722248508876,0.3752186,69582.0,69581.0,2.03369317]
[1722248509193,0.26487985,69582.0,69581.0,2.03369317]
[1722248510456,0.26487985,69582.0,69581.0,1.93269317]
[1722248510651,0.26487985,69582.0,69581.0,2.03369317]
[1722248511149,0.26487985,69582.0,69581.0,1.93269317]
[1722248511658,0.26487985,69582.0,69581.0,1.93269339]
[1722248511813,4e-05,69591.0,69590.0,0.38734812]
[1722248512160,0.42926131,69613.0,69610.0,0.58049312]
[1722248512314,0.22544103,69611.0,69610.0,1.22821835]
[1722248512521,0.23181349,69611.0,69610.0,1.48107035]
[1722248513091,0.22544103,69611.0,69610.0,1.75013955]
[1722248513447,0.24799011,69611.0,69610.0,1.75013955]
[1722248513649,0.2472804,69611.0,69610.0,1.63069232]
[1722248514022,0.24727035,69611.0,69610.0,1.63069232]
[1722248514244,0.24827035,69611.0,69610.0,1.64469232]
[1722248516482,0.08004,69628.0,69627.0,0.11878912]
[1722248516686,0.08004,69628.0,69627.0,0.54698112]
[1722248516959,0.08004,69628.0,69627.0,1.2756313]
[1722248517162,0.36994148,69628.0,69627.0,1.2756313]
[1722248517376,0.29074148,69628.0,69627.0,1.2986313]
[1722248517563,0.29074148,69628.0,69627.0,1.5284263]
[1722248517737,0.22474148,69628.0,69627.0,1.5284263]
[1722248518142,0.22474148,69628.0,69627.0,1.6284263]
[1722248518342,0.23129362,69628.0,69627.0,1.6284263]
[1722248518524,0.22474148,69628.0,69627.0,1.66711193]
[1722248519554,0.22474148,69628.0,69627.0,1.66911193]
[1722248519760,0.2472848,69628.0,69627.0,1.66911193]
[1722248519957,0.2472848,69628.0,69627.0,1.6444263]
[1722248524085,0.2472848,69628.0,69627.0,1.69382368]
[1722248524302,0.2482848,69628.0,69627.0,1.70782368]
[1722248524504,0.18708912,69628.0,69627.0,2.08921868]
[1722248524809,0.0081,69639.0,69636.0,1.38450212]
[1722248525005,0.0081,69639.0,69636.0,1.40750212]
[1722248525208,0.0081,69639.0,69636.0,1.5467673]
[1722248525414,0.0081,69639.0,69636.0,1.5457673]
[1722248525634,0.0081,69639.0,69636.0,1.58445293]
[1722248526566,0.00184,69637.0,69636.0,1.59845293]
[1722248528580,0.02437997,69637.0,69636.0,1.61245293]
[1722248531863,0.17359719,69637.0,69636.0,1.61245293]
[1722248532461,0.17359719,69637.0,69636.0,1.7318267]
[1722248533009,0.17359719,69637.0,69636.0,1.61245293]
[1722248533204,0.17359719,69637.0,69636.0,1.69314096]
[1722248533719,0.17359719,69637.0,69636.0,1.7318267]
[1722248535702,0.0081,69639.0,69637.0,1.38348012]
[1722248535906,0.15005605,69638.0,69637.0,1.6850036]
[1722248536095,0.15005605,69638.0,69637.0,1.7850036]
[1722248536216,0.15005605,69638.0,69637.0,1.66563068]
[1722248536415,0.15005605,69638.0,69637.0,1.78500227]
[1722248537415,0.0081,69644.0,69643.0,0.11978912]
[1722248537623,0.00067956,69649.0,69648.0,0.46437812]
[1722248537864,0.0289902,69649.0,69648.0,1.24722627]
[1722248538067,0.0289902,69649.0,69648.0,1.70667827]
[1722248538307,0.0289902,69649.0,69648.0,1.93640427]
[1722248539115,0.05152607,69649.0,69648.0,1.89771864]
[1722248539832,0.2753076,69649.0,69648.0,1.89771864]
[1722248539979,0.2753076,69649.0,69648.0,1.86075371]
[1722248541021,0.2753076,69649.0,69648.0,1.87475371]
[1722248541807,0.25277173,69649.0,69648.0,1.87475371]
[1722248542965,0.25277173,69649.0,69648.0,1.87473238]
[1722248543531,0.25277173,69649.0,69648.0,1.8747325]
[1722248544345,0.25277173,69649.0,69648.0,1.8887325]
[1722248545720,0.25277173,69649.0,69648.0,1.88873261]
[1722248546525,0.27530767,69649.0,69648.0,1.94840785]
[1722248546929,0.25277173,69649.0,69648.0,1.94840785]
[1722248547432,0.25277173,69649.0,69648.0,1.95929434]
[1722248547635,0.25277173,69649.0,69648.0,2.13832007]
[1722248548013,0.0609,69654.0,69651.0,1.134722]
[1722248548215,0.23187217,69652.0,69651.0,1.63959822]
[1722248548739,0.23187217,69652.0,69651.0,1.69927346]
[1722248549348,0.25440786,69652.0,69651.0,1.341222]
[1722248549570,0.25440786,69652.0,69651.0,1.86931421]
[1722248549770,0.25440786,69652.0,69651.0,1.94298945]
[1722248550129,0.39470786,69652.0,69651.0,1.47257248]
[1722248550331,0.37217217,69652.0,69651.0,1.47257248]
[1722248550533,0.37217217,69652.0,69651.0,1.37357248]
[1722248550949,0.37217217,69652.0,69651.0,1.47257248]
[1722248551553,0.37217217,69652.0,69651.0,1.48657248]
[1722248552667,0.37217217,69652.0,69651.0,1.48658165]
[1722248553670,0.39470832,69652.0,69651.0,1.38758165]
[1722248553871,0.37217217,69652.0,69651.0,1.38758165]
[1722248555078,0.37217217,69652.0,69651.0,1.48758165]
[1722248555750,0.37217217,69652.0,69651.0,1.58658165]
[1722248555897,0.37217217,69652.0,69651.0,1.467222]
[1722248556077,0.37217217,69652.0,69651.0,1.58658165]
[1722248557253,0.39470832,69652.0,69651.0,1.58658165]
[1722248557460,0.37217217,69652.0,69651.0,1.58658165]
[1722248557800,0.37217217,69652.0,69651.0,1.47172365]
[1722248558005,0.52137173,69652.0,69651.0,1.58658165]
[1722248559322,0.52137173,69652.0,69651.0,1.58858414]
[1722248559528,0.52137173,69652.0,69651.0,1.50508414]
[1722248559827,0.52137173,69652.0,69651.0,1.56699834]
[1722248560734,0.54390658,69652.0,69651.0,1.56699834]
[1722248561848,0.52137173,69652.0,69651.0,1.56699834]
[1722248562048,0.52137173,69652.0,69651.0,1.56499834]
[1722248562668,0.52137173,69652.0,69651.0,1.5649981]
[1722248565391,0.54392105,69652.0,69651.0,1.56499406]
[1722248565919,0.52138493,69652.0,69651.0,1.56499538]
[1722248569051,0.52138493,69652.0,69651.0,1.56499582]
[1722248569232,0.5439206,69652.0,69651.0,1.56499582]
[1722248569630,0.4649206,69652.0,69651.0,1.56499582]
[1722248570008,0.4649206,69652.0,69651.0,1.56699582]
[1722248570416,0.4649206,69652.0,69651.0,1.56499582]
[1722248570654,0.4649206,69652.0,69651.0,1.56699582]
[1722248570874,0.4649206,69652.0,69651.0,1.25614382]
[1722248571302,0.24112364,69652.0,69651.0,1.38485982]
[1722248571707,0.17982364,69652.0,69651.0,1.48585982]
[1722248572243,0.17982364,69652.0,69651.0,1.3665002]
[1722248572431,0.17982364,69652.0,69651.0,1.38485039]
[1722248572653,0.17982364,69652.0,69651.0,1.48585039]
[1722248572865,0.17982364,69652.0,69651.0,1.3665002]
[1722248573057,0.17982364,69652.0,69651.0,1.58585299]
[1722248574415,0.17982364,69652.0,69651.0,1.48485299]
[1722248575088,0.17982364,69652.0,69651.0,1.48485508]
[1722248577970,0.17982364,69652.0,69651.0,1.58585508]
[1722248578178,0.17982364,69652.0,69651.0,1.48485508]
[1722248578380,0.17982364,69652.0,69651.0,1.58385508]
[1722248578692,0.17982364,69652.0,69651.0,1.4645002]
[1722248578894,0.32072364,69652.0,69651.0,1.58385508]
[1722248579341,0.32072364,69652.0,69651.0,1.58585508]
[1722248579517,0.32072364,69652.0,69651.0,1.50035508]
[1722248579721,0.32072364,69652.0,69651.0,1.15814508]
[1722248580123,0.29818797,69652.0,69651.0,1.15814508]
[1722248580542,0.29818797,69652.0,69651.0,1.38786108]
[1722248581192,0.29818797,69652.0,69651.0,1.2685062]
[1722248581409,0.29818797,69652.0,69651.0,1.38786108]
[1722248581410,0.14899,69652.0,69651.0,1.38786108]
[1722248581540,0.2981836,69652.0,69651.0,1.38786108]
[1722248581746,0.2981836,69652.0,69651.0,1.2685062]
[1722248581968,0.2981836,69652.0,69651.0,1.38786108]
[1722248583628,0.32071899,69652.0,69651.0,1.38786108]
[1722248583828,0.2981836,69652.0,69651.0,1.2685062]
[1722248584127,0.2981836,69652.0,69651.0,1.38786108]
[1722248584664,0.2981836,69652.0,69651.0,1.38986108]
[1722248586965,0.32071899,69652.0,69651.0,1.38986108]
[1722248587135,0.32071899,69652.0,69651.0,1.28886108]
[1722248587681,0.32071899,69652.0,69651.0,1.38986033]
[1722248588386,0.2981836,69652.0,69651.0,1.38986033]
[1722248588601,0.2981836,69652.0,69651.0,1.28886033]
[1722248589005,0.2981836,69652.0,69651.0,1.38986033]
[1722248589524,0.1572836,69652.0,69651.0,1.38986033]
[1722248589721,0.38106781,69652.0,69651.0,1.38986033]
[1722248589982,0.10554086,69652.0,69651.0,1.70916033]
[1722248590157,0.01107332,69652.0,69651.0,1.70916033]
[1722248590908,0.15257332,69652.0,69651.0,1.38985252]
[1722248591090,0.15257332,69652.0,69651.0,1.38785252]
[1722248591319,0.15257332,69652.0,69651.0,1.2705062]
[1722248591442,0.15257332,69652.0,69651.0,1.3878545]
[1722248591843,0.15257332,69652.0,69651.0,1.2685062]
[1722248592212,0.07147332,69652.0,69651.0,1.38985483]
[1722248593673,0.01107332,69652.0,69651.0,1.38985483]
[1722248594032,0.0802,69655.0,69654.0,1.134677]
[1722248594170,0.0802,69655.0,69654.0,1.43752563]
[1722248594600,0.0802,69655.0,69654.0,1.46052563]
[1722248595014,0.07154355,69671.0,69655.0,1.134663]
[1722248595015,0.0793,69658.0,69655.0,1.134663]
[1722248595239,0.0793,69658.0,69654.0,0.32584863]
[1722248595240,0.0793,69658.0,69657.0,0.529044]
[1722248595375,0.0624,69662.0,69658.0,0.049]
[1722248595578,0.0624,69662.0,69661.0,0.98639]
[1722248595778,0.28617165,69662.0,69661.0,1.10573863]
[1722248596187,0.28617165,69662.0,69661.0,1.33542163]
[1722248596636,0.28617165,69662.0,69661.0,1.33442163]
[1722248597361,0.28617165,69662.0,69661.0,1.33441693]
[1722248597776,0.28801165,69662.0,69661.0,1.34841693]
[1722248597976,0.28801165,69662.0,69661.0,1.36241693]
[1722248598380,0.28801165,69662.0,69661.0,1.17991693]
[1722248598539,0.28801165,69662.0,69661.0,1.36241693]
[1722248598953,0.31054512,69662.0,69661.0,1.36241693]
[1722248600066,0.28801165,69662.0,69661.0,1.36241693]
[1722248600470,0.28801165,69662.0,69661.0,1.36241794]
[1722248603174,0.28801165,69662.0,69661.0,1.36241783]
[1722248603547,0.31054512,69662.0,69661.0,1.26341783]
[1722248603751,0.31054512,69662.0,69661.0,1.243073]
[1722248603958,0.31054512,69662.0,69661.0,1.36241783]
[1722248604298,0.31054512,69662.0,69661.0,1.13273483]
[1722248604701,0.28801165,69662.0,69661.0,1.36241783]
[1722248605533,0.28801165,69662.0,69661.0,1.37272638]
[1722248605769,0.28801165,69662.0,69661.0,1.27372638]
[1722248605770,0.28841165,69662.0,69661.0,1.27372638]
[1722248605964,0.28841165,69662.0,69661.0,1.37272638]
[1722248607151,0.28841165,69662.0,69661.0,1.37272602]
[1722248608193,0.31094465,69662.0,69661.0,1.37272602]
[1722248608395,0.28841165,69662.0,69661.0,1.37272602]
[1722248610280,0.28841165,69662.0,69661.0,1.15438155]
[1722248610616,0.28841165,69662.0,69661.0,1.37272603]
[1722248611029,0.28841165,69662.0,69661.0,1.37272503]
[1722248611725,0.31094456,69662.0,69661.0,1.37272503]
[1722248612460,0.31094342,69662.0,69661.0,1.37472503]
[1722248612713,0.31094342,69662.0,69661.0,1.37272503]
[1722248612928,0.28841051,69662.0,69661.0,1.37272503]
[1722248613883,0.43759057,69662.0,69661.0,1.3727256]
[1722248614442,0.43759057,69662.0,69661.0,1.3747256]
[1722248616046,0.43759057,69662.0,69661.0,1.2737256]
[1722248616267,0.46012323,69662.0,69661.0,1.3747256]
[1722248616591,0.43759057,69662.0,69661.0,1.2737256]
[1722248616731,0.43759057,69662.0,69661.0,1.3747256]
[1722248616931,0.43759057,69662.0,69661.0,1.37471821]
[1722248619540,0.4601233,69662.0,69661.0,1.37471821]
[1722248619888,0.43759057,69662.0,69661.0,1.37471821]
[1722248620247,0.43759057,69662.0,69661.0,1.37471843]
[1722248620599,0.43759057,69662.0,69661.0,1.25538155]
[1722248620810,0.43759057,69662.0,69661.0,1.37471843]
[1722248622133,0.43759057,69662.0,69661.0,0.91969443]
[1722248622332,0.21382006,69662.0,69661.0,0.91969443]
[1722248622657,0.21382006,69662.0,69661.0,1.26421843]
[1722248623005,0.21382006,69662.0,69661.0,1.34771763]
[1722248623173,0.23635274,69662.0,69661.0,1.34771763]
[1722248623381,0.23635274,69662.0,69661.0,1.22838155]
[1722248623518,0.23635274,69662.0,69661.0,1.34771749]
[1722248625813,0.23635274,69662.0,69661.0,1.24671749]
[1722248626200,0.23635274,69662.0,69661.0,1.34771749]
[1722248626869,0.08717268,69662.0,69661.0,1.34771749]
[1722248627101,0.23634261,69662.0,69661.0,1.34571749]
[1722248627297,0.23634261,69662.0,69661.0,1.34771749]
[1722248627502,0.23134261,69662.0,69661.0,1.34771749]
[1722248628292,0.17170261,69662.0,69661.0,1.34771749]
[1722248628491,0.17170261,69662.0,69661.0,1.37071749]
[1722248629777,0.17170261,69662.0,69661.0,1.25138155]
[1722248629973,0.17170261,69662.0,69661.0,1.49005155]
[1722248630482,0.17170261,69662.0,69661.0,1.49005111]
[1722248631346,0.17170102,69662.0,69661.0,1.49005111]
[1722248631657,0.17170102,69662.0,69661.0,1.49097511]
[1722248631884,0.17254102,69662.0,69661.0,1.49097511]
[1722248632089,0.15000834,69662.0,69661.0,1.49097511]
[1722248632296,0.37376107,69662.0,69661.0,1.49097511]
[1722248632836,0.37376107,69662.0,69661.0,1.49097489]
[1722248633212,0.37376107,69662.0,69661.0,1.490975]
[1722248635385,0.39629395,69662.0,69661.0,1.490975]
[1722248636607,0.39629395,69662.0,69661.0,1.4909715]
[1722248638922,0.39629395,69662.0,69661.0,1.3716365]
[1722248639793,0.39629395,69662.0,69661.0,1.3716369]
[1722248640308,0.39629395,69662.0,69661.0,1.25230555]
[1722248640506,0.39629395,69662.0,69661.0,1.37163658]
[1722248640891,0.17254122,69662.0,69661.0,1.09800403]
[1722248641135,0.17254122,69662.0,69661.0,1.21284503]
[1722248641337,0.17254122,69662.0,69661.0,1.44252803]
[1722248641594,0.17254122,69662.0,69661.0,1.44852803]
[1722248641770,0.17354122,69662.0,69661.0,1.36732803]
[1722248643998,0.17354122,69662.0,69661.0,1.247997]
[1722248643999,0.15100834,69662.0,69661.0,1.247997]
[1722248644183,0.15100834,69662.0,69661.0,1.3776001]
[1722248644383,0.15200834,69662.0,69661.0,1.3916001]
[1722248645430,0.15200834,69662.0,69661.0,1.27226907]
[1722248645609,0.15200834,69662.0,69661.0,1.3916001]
[1722248647183,0.17454125,69662.0,69661.0,1.3916001]
[1722248647741,0.17454125,69662.0,69661.0,1.4916001]
[1722248648822,0.17454125,69662.0,69661.0,1.4915997]
[1722248650113,0.16704125,69662.0,69661.0,1.4915997]
[1722248651723,0.39078563,69662.0,69661.0,1.4915997]
[1722248651947,0.39078563,69662.0,69661.0,1.37226907]
[1722248652116,0.16704125,69662.0,69661.0,1.49159785]
[1722248652530,0.39077944,69662.0,69661.0,1.37226907]
[1722248652877,0.16704125,69662.0,69661.0,1.49159721]
[1722248653082,0.16704125,69662.0,69661.0,1.63489721]
[1722248653495,0.16704125,69662.0,69661.0,2.06734009]
[1722248653705,0.09449234,69662.0,69661.0,2.1103773]
[1722248654323,0.09449234,69662.0,69661.0,2.06734009]